fUST/lending_fUST_20240128
["ID","MTS","AMOUNT","RATE_DAILY","PERIOD"]
[312893735,1706427040809,-906.05,0.00024657,2]
[312893736,1706427040818,-1828.36,0.00024657,2]
[312893737,1706427040827,-500.0,0.00024657,2]
[312893738,1706427040836,-500.0,0.00024657,2]
[312893739,1706427040845,-500.0,0.00024657,2]
[312893740,1706427040854,-500.0,0.00024657,2]
[312893741,1706427040863,-500.0,0.00024657,2]
[312893742,1706427040872,-500.0,0.00024657,2]
[312893743,1706427040881,-1781.92,0.00024657,2]
[312893744,1706427040890,-819.23,0.00024657,2]
[312893745,1706427040898,-2156.52,0.00024657,2]
[312893746,1706427040907,-156.42516188,0.00024657,2]
[312893747,1706427040916,-1024.81,0.00024657,2]
[312893748,1706427040926,-167.017897,0.00024657,2]
[312893749,1706427040934,-167.017897,0.00024657,2]
[312893750,1706427040943,-167.017897,0.00024657,2]
[312893751,1706427040952,-167.017897,0.00024657,2]
[312893752,1706427040961,-167.017897,0.00024657,2]
[312893753,1706427040970,-167.017897,0.00024657,2]
[312893754,1706427040979,-500.0,0.00024657,2]
[312893755,1706427040988,-500.0,0.00024657,2]
[312893756,1706427040997,-500.0,0.00024657,2]
[312893757,1706427041006,-500.0,0.00024657,2]
[312893758,1706427041015,-500.0,0.00024657,2]
[312893759,1706427041024,-500.0,0.00024657,2]
[312893760,1706427041032,-500.0,0.00024657,2]
[312893761,1706427041042,-500.0,0.00024657,2]
[312893762,1706427041051,-875.19,0.00024657,2]
[312893763,1706427041060,-500.0,0.00024657,2]
[312893764,1706427041068,-19603.15261455,0.00024657,2]
[312893765,1706427041084,-10202.84952288,0.00024657,2]
[312893791,1706427043301,-155.02325349,0.00021092,2]
[312893793,1706427043312,-9768.95786257,0.00024657,2]
[312893794,1706427043322,-501.6740984,0.00024657,2]
[312893795,1706427043331,-500.0,0.00024657,2]
[312893796,1706427043341,-507.19570308,0.00024657,2]
[312893797,1706427043352,-1233.23,0.00024657,2]
[312893798,1706427043361,-500.0,0.00024657,2]
[312893799,1706427043370,-506.37674833,0.00024657,2]
[312893800,1706427043379,-510.55596455,0.00024657,2]
[312893801,1706427043389,-500.0,0.00024657,2]
[312893802,1706427043398,-500.0,0.00024657,2]
[312893803,1706427043407,-1265.14,0.00024657,2]
[312893804,1706427043417,-2315.71,0.00024657,2]
[312893805,1706427043426,-534.57,0.00024657,2]
[312893806,1706427043435,-500.0,0.00024657,2]
[312893807,1706427043444,-500.0,0.00024657,2]
[312893808,1706427043453,-500.0,0.00024657,2]
[312893809,1706427043462,-500.0,0.00024657,2]
[312893810,1706427043472,-2053.73482788,0.00024657,2]
[312893823,1706427046462,-199.4949389,0.00024384,2]
[312893824,1706427046473,-1721.4188608,0.00024647,3]
[312893825,1706427087781,209.4513334,0.0002,2]
[312893984,1706428238598,-5214.02314025,0.00021932,2]
[312893986,1706428238607,-1485.48078161,0.00021933,2]
[312893988,1706428238617,-1268.12169078,0.00021934,2]
[312893990,1706428238626,-302.2469024,0.00021935,2]
[312893992,1706428238636,-1774.09643899,0.00021936,2]
[312893994,1706428238645,-155.02170304,0.00021936,4]
[312893996,1706428238654,-3.85886581,0.00021936,2]
[312894188,1706428243731,-155.02170304,0.00021931,2]
[312894189,1706428243742,-4423.86541801,0.00021936,2]
[312894232,1706428485278,406.30867636,0.00019836,2]
[312894235,1706428813913,1380.51514519,0.00031,17]
[312894236,1706428838131,1333.5066892,0.00031,17]
[312894256,1706429434625,-155.02170304,0.00021836,4]
[312894257,1706429434634,-1300.46735664,0.00021837,2]
[312894297,1706429438863,-185.01342497,0.00021837,2]
[312894298,1706429438873,-500.0,0.00021838,2]
[312894299,1706429438883,-679.47851073,0.00021839,2]
[312894300,1706429438893,-169.58374,0.00021864,2]
[312894301,1706429438902,-150.44,0.00021928,2]
[312894302,1706429438911,-11206.74699512,0.00021936,2]
[312894303,1706429438920,-2035.76851465,0.00022,2]
[312894304,1706429438930,-904.55199849,0.00022189,2]
[312894305,1706429438940,-35835.1171164,0.0002276,2]
[312894467,1706430637871,-155.02170304,0.00020203,2]
[312894468,1706430637881,-302.2469024,0.00020204,2]
[312894469,1706430637889,-303.81437787,0.00020204,2]
[312894470,1706430637898,-1485.48078161,0.00020204,2]
[312894471,1706430637908,-1485.48078161,0.00020204,2]
[312894473,1706430637917,-1485.48078161,0.00020204,2]
[312894474,1706430637926,-243.38918816,0.00020205,2]
[312894476,1706430637935,-1027.23252462,0.00020205,2]
[312894478,1706430637944,-1584.05603829,0.00020206,2]
[312894480,1706430637953,-620.0257606,0.00020207,2]
[312894482,1706430637962,-500.0,0.00020207,2]
[312894484,1706430637971,-1856.25502519,0.00020207,2]
[312894486,1706430637980,-24900.0,0.0002021,2]
[312894488,1706430637989,-3000.0,0.000203,3]
[312894490,1706430637997,-523.1342433,0.00020653,2]
[312894492,1706430638006,-270.87245091,0.0002066,2]
[312894494,1706430638015,-168.353709,0.00021746,2]
[312894496,1706430638025,-166.666667,0.00021918,2]
[312894498,1706430638033,-3903.3501958,0.00022,2]
[312894500,1706430638042,-426.44750157,0.00022189,2]
[312894502,1706430638051,-274.95719598,0.0002219,2]
[312894504,1706430638061,-3701.73,0.00022196,3]
[312894506,1706430638070,-6402.22,0.00022196,3]
[312894508,1706430638078,-5335.18,0.00022196,3]
[312894510,1706430638087,-4445.98,0.00022196,3]
[312894512,1706430638096,-50000.0,0.00022206,2]
[312894514,1706430638106,-167.31888484,0.00022429,2]
[312894516,1706430638115,-50000.0,0.00022529,2]
[312894518,1706430638125,-14164.8828836,0.0002276,2]
[312894530,1706430638222,-300.0,0.0002276,2]
[312894532,1706430638231,-155.18762154,0.0002276,2]
[312894533,1706430638242,-194.81327598,0.0002276,2]
[312894535,1706430638251,-1828.0659992,0.0002276,2]
[312894537,1706430638260,-2086.73700022,0.0002276,2]
[312894539,1706430638269,-153.0,0.00022856,2]
[312894540,1706430638279,-153.0,0.00022856,2]
[312894541,1706430638287,-153.0,0.00022856,2]
[312894542,1706430638297,-153.0,0.00022856,2]
[312894543,1706430638306,-153.0,0.00022856,2]
[312894545,1706430638315,-398.8927469,0.00022856,2]
[312894546,1706430638324,-153.0,0.00022856,2]
[312894547,1706430638333,-199.4949389,0.00022856,2]
[312894548,1706430638342,-153.0,0.00022956,2]
[312894549,1706430638352,-153.0,0.00022956,2]
[312894550,1706430638361,-153.0,0.00022956,2]
[312894551,1706430638370,-153.0,0.00022956,2]
[312894552,1706430638379,-199.4949389,0.00022956,2]
[312894553,1706430638389,-153.0,0.00022978,2]
[312894554,1706430638398,-153.0,0.00022978,2]
[312894555,1706430638407,-199.4949389,0.00022978,2]
[312894556,1706430638416,-153.0,0.00022978,2]
[312894557,1706430638425,-199.4949389,0.00022978,2]
[312894558,1706430638434,-153.0,0.00022978,2]
[312894559,1706430638443,-153.0,0.00022978,2]
[312894560,1706430638451,-199.4949389,0.00022978,2]
[312894561,1706430638460,-153.0,0.00023378,2]
[312894562,1706430638469,-153.0,0.00023378,2]
[312894563,1706430638478,-199.4949389,0.00023378,2]
[312894564,1706430638488,-153.0,0.00023378,2]
[312894565,1706430638496,-153.0,0.00023378,2]
[312894566,1706430638506,-199.4949389,0.00023378,2]
[312894567,1706430638515,-306.0,0.00023378,2]
[312894568,1706430638524,-153.0,0.00023378,2]
[312894569,1706430638533,-395.7938941,0.00023378,2]
[312894570,1706430638543,-199.4949389,0.00023378,2]
[312894571,1706430638553,-167.31888484,0.00023492,2]
[312894572,1706430638562,-153.0,0.000237,2]
[312894573,1706430638572,-199.4949389,0.000237,2]
[312894574,1706430638582,-153.0,0.000237,2]
[312894575,1706430638593,-199.4949389,0.000237,2]
[312894576,1706430638602,-199.4949389,0.000237,2]
[312894577,1706430638611,-153.0,0.000237,2]
[312894578,1706430638621,-153.0,0.000237,2]
[312894579,1706430638630,-199.4949389,0.000237,2]
[312894580,1706430638639,-199.4949389,0.000237,2]
[312894581,1706430638648,-199.4949389,0.000237,2]
[312894582,1706430638658,-153.0,0.000237,2]
[312894583,1706430638668,-199.4949389,0.000237,2]
[312894584,1706430638677,-153.0,0.000237,2]
[312894585,1706430638686,-199.4949389,0.000237,2]
[312894586,1706430638695,-390.4751378,0.000237,2]
[312894587,1706430638704,-329.8196987,0.000237,2]
[312894588,1706430638713,-172.9281118,0.000237,2]
[312894589,1706430638722,-251.1800213,0.000237,2]
[312894590,1706430638731,-199.4949389,0.000237,2]
[312894591,1706430638740,-153.0,0.000237,2]
[312894592,1706430638749,-153.0,0.000237,2]
[312894593,1706430638758,-199.4949389,0.000237,2]
[312894594,1706430638768,-153.0,0.000237,2]
[312894595,1706430638777,-153.0,0.000237,2]
[312894596,1706430638786,-155.7799273,0.000237,2]
[312894597,1706430638796,-199.4949389,0.000237,2]
[312894598,1706430638805,-153.0,0.000237,2]
[312894599,1706430638815,-153.0,0.000237,2]
[312894600,1706430638825,-199.4949389,0.000237,2]
[312894601,1706430638836,-153.0,0.000237,2]
[312894602,1706430638846,-153.0,0.000237,2]
[312894603,1706430638855,-199.4949389,0.000237,2]
[312894604,1706430638865,-557.4339509,0.00024063,2]
[312894605,1706430638874,-153.9764062,0.0002411,2]
[312894606,1706430638883,-632.06111571,0.00024132,2]
[312894607,1706430638893,-1356.81055732,0.00024308,2]
[312894608,1706430638902,-13908.93319985,0.00024308,2]
[312894609,1706430638911,-166.666667,0.00024482,2]
[312894610,1706430638920,-151.0,0.000245,2]
[312894611,1706430638928,-691.75747153,0.00024552,2]
[312894612,1706430638938,-262.58292257,0.00024552,2]
[312894613,1706430638948,-2784.04255117,0.00024552,2]
[312894614,1706430638957,-155.48459082,0.00024553,2]
[312894615,1706430638966,-155.3225529,0.00024553,2]
[312894616,1706430638974,-628.17717001,0.00024554,2]
[312894617,1706430638983,-1299.03015508,0.00024554,2]
[312894618,1706430638991,-1406.49498548,0.00024554,2]
[312894619,1706430638999,-289.31631416,0.00024554,2]
[312894620,1706430639007,-331.10236049,0.00024554,2]
[312894621,1706430639015,-309.95093829,0.00024554,2]
[312894622,1706430639024,-176.86265737,0.00024554,2]
[312894623,1706430639033,-524.46302518,0.00024554,2]
[312894624,1706430639042,-245.58977518,0.00024554,2]
[312894625,1706430639050,-155.02635448,0.00024554,2]
[312894626,1706430639059,-3936.78097626,0.00024554,2]
[312894627,1706430639068,-156.20898937,0.00024554,2]
[312894628,1706430639077,-265.46862061,0.00024554,2]
[312894629,1706430639086,-155.52200796,0.00024554,2]
[312894630,1706430639094,-167.66325036,0.00024554,2]
[312894631,1706430639104,-155.60546346,0.00024554,2]
[312894632,1706430639112,-4837.47410872,0.00024554,2]
[312894633,1706430639120,-200.0,0.00024554,2]
[312894634,1706430639130,-164.41820469,0.00024554,2]
[312894635,1706430639138,-156.48321627,0.00024554,2]
[312894636,1706430639146,-155.84154948,0.00024554,2]
[312894637,1706430639154,-259.19142064,0.00024554,2]
[312894638,1706430639164,-619.33057673,0.00024554,2]
[312894639,1706430639175,-1589.9986431,0.00024555,2]
[312894640,1706430639184,-167.31888484,0.00024555,2]
[312894641,1706430639194,-273265.67848283,0.00024556,2]
[312894667,1706430640991,-155.02170304,0.00020202,4]
[312894669,1706430641000,-167.57212832,0.00024552,2]
[312894671,1706430641009,-1128.04391009,0.00024556,2]
[312894830,1706431832100,-1485.48078161,0.00020227,2]
[312894832,1706431832109,-155.02170304,0.00020227,4]
[312894834,1706431832119,-274.95719598,0.00020228,2]
[312894836,1706431832129,-1856.25502519,0.00020674,2]
[312894838,1706431832138,-598.70258019,0.00020675,2]
[312894840,1706431832149,-989.94723502,0.00020675,2]
[312894845,1706431832186,-406.87333721,0.00020675,2]
[312894847,1706431832195,-155.02170304,0.00020676,2]
[312894851,1706431832296,-2104.09269844,0.00020676,2]
[312894856,1706431839053,-620.0257606,0.00020226,2]
[312894857,1706431839065,-3109.93044181,0.00020676,2]
[312894858,1706431839075,-3971.0900052,0.00020692,2]
[312894859,1706431839084,-170.734887,0.000213,2]
[312894860,1706431839094,-166.666666,0.00021918,2]
[312894861,1706431839103,-550.78149753,0.00021999,2]
[312894862,1706431839113,-500.0,0.00021999,2]
[312894863,1706431839124,-500.0,0.00021999,2]
[312894864,1706431839133,-500.0,0.00021999,2]
[312894865,1706431839143,-560.94941592,0.00021999,2]
[312894866,1706431839153,-193.33149398,0.00021999,2]
[312894867,1706431839162,-500.0,0.00021999,2]
[312894868,1706431839172,-500.0,0.00021999,2]
[312894869,1706431839182,-500.0,0.00021999,2]
[312894870,1706431839192,-456.30316214,0.00021999,2]
[312894871,1706431839201,-500.0,0.00021999,2]
[312894872,1706431839211,-200.72682926,0.00021999,2]
[312894873,1706431839220,-500.0,0.00021999,2]
[312894874,1706431839230,-500.0,0.00021999,2]
[312894875,1706431839239,-501.09,0.00021999,2]
[312894876,1706431839249,-501.56619566,0.00021999,2]
[312894877,1706431839259,-500.0,0.00021999,2]
[312894878,1706431839269,-185.58917988,0.00021999,2]
[312894879,1706431839278,-327.6585175,0.00022,2]
[312894880,1706431839287,-293.76675718,0.00022,4]
[312894881,1706431839296,-426.44750157,0.00022171,2]
[312894882,1706431839306,-167.31888487,0.00022172,2]
[312894883,1706431839315,-16903.19736175,0.00022188,2]
[312894884,1706431839325,-7019.17,0.00022194,3]
[312894885,1706431839334,-5849.31,0.00022194,3]
[312894886,1706431839344,-4874.43,0.00022194,3]
[312894887,1706431839354,-2076.27654373,0.00022202,2]
[312894888,1706431839363,-28389.56,0.00022204,2]
[312894889,1706431839372,-500.0,0.00022204,2]
[312894890,1706431839381,-500.0,0.00022204,2]
[312894891,1706431839390,-2385.83,0.00022204,2]
[312894892,1706431839400,-500.0,0.00022204,2]
[312894893,1706431839410,-18074.88,0.00022204,2]
[312894894,1706431839419,-904.35,0.00022204,2]
[312894895,1706431839429,-39167.92,0.00022204,2]
[312894896,1706431839438,-500.0,0.00022205,2]
[312894897,1706431839447,-476.67319883,0.00022205,2]
[312894898,1706431839457,-500.0,0.00022205,2]
[312894899,1706431839466,-508.20795299,0.00022205,2]
[312894900,1706431839475,-508.85286137,0.00022205,2]
[312894901,1706431839485,-586.16320171,0.00022205,2]
[312894902,1706431839494,-500.0,0.00022205,2]
[312894903,1706431839503,-500.0,0.00022205,2]
[312894904,1706431839512,-500.0,0.00022205,2]
[312894905,1706431839521,-500.0,0.00022205,2]
[312894906,1706431839531,-500.0,0.00022205,2]
[312894908,1706431839540,-500.0,0.00022205,2]
[312894909,1706431839550,-500.0,0.00022205,2]
[312894910,1706431839559,-500.0,0.00022205,2]
[312894911,1706431839568,-500.0,0.00022205,2]
[312894912,1706431839579,-500.0,0.00022205,2]
[312894913,1706431839589,-724.92,0.00022205,2]
[312894914,1706431839598,-500.0,0.00022205,2]
[312894915,1706431839609,-500.0,0.00022272,2]
[312894916,1706431839618,-915.71,0.00022272,2]
[312894917,1706431839628,-500.0,0.00022272,2]
[312894918,1706431839637,-500.0,0.00022272,2]
[312894919,1706431839646,-500.0,0.00022272,2]
[312894920,1706431839656,-500.0,0.00022272,2]
[312894921,1706431839665,-507.68,0.00022272,2]
[312894922,1706431839674,-500.0,0.00022272,2]
[312894923,1706431839684,-500.0,0.00022272,2]
[312894924,1706431839693,-500.0,0.00022272,2]
[312894925,1706431839703,-853.73,0.00022272,2]
[312894926,1706431839712,-500.0,0.00022272,2]
[312894927,1706431839722,-500.0,0.00022272,2]
[312894928,1706431839731,-500.0,0.00022272,2]
[312894929,1706431839740,-500.0,0.00022272,2]
[312894930,1706431839750,-500.0,0.00022272,2]
[312894931,1706431839760,-500.0,0.00022272,2]
[312894932,1706431839770,-500.0,0.00022272,2]
[312894933,1706431839779,-500.0,0.00022272,2]
[312894934,1706431839790,-500.0,0.00022272,2]
[312894935,1706431839799,-500.0,0.00022272,2]
[312894936,1706431839809,-500.0,0.00022272,2]
[312894937,1706431839819,-483.73588031,0.00022272,2]
[312894938,1706431839829,-500.0,0.00022272,2]
[312894939,1706431839839,-2074.42,0.00022272,2]
[312894940,1706431839849,-500.0,0.00022272,2]
[312894941,1706431839859,-500.0,0.00022272,2]
[312894942,1706431839868,-500.0,0.00022272,2]
[312894943,1706431839877,-500.0,0.00022272,2]
[312894944,1706431839886,-632.8967434,0.00022272,2]
[312894945,1706431839896,-500.0,0.00022272,2]
[312894946,1706431839905,-440.63457018,0.00022273,2]
[312894947,1706431839914,-500.0,0.00022273,2]
[312894948,1706431839923,-500.0,0.00022273,2]
[312894949,1706431839933,-500.0,0.00022273,2]
[312894950,1706431839942,-500.0,0.00022273,2]
[312894951,1706431839952,-500.0,0.00022273,2]
[312894952,1706431839964,-500.0,0.00022273,2]
[312894953,1706431839973,-500.0,0.00022273,2]
[312894954,1706431839983,-500.0,0.00022273,2]
[312894955,1706431839993,-501.09,0.00022273,2]
[312894956,1706431840005,-500.0,0.00022273,2]
[312894957,1706431840014,-348.811535,0.000223,2]
[312894958,1706431840024,-166.666666,0.00022431,2]
[312894959,1706431840036,-572.10326965,0.00022456,2]
[312894960,1706431840046,-2105.7958969,0.00022477,2]
[312894961,1706431840056,-28389.56,0.00022478,2]
[312894962,1706431840066,-213.18035084,0.00022478,2]
[312894963,1706431840075,-500.0,0.00022478,2]
[312894964,1706431840084,-2385.83,0.00022478,2]
[312894965,1706431840095,-500.0,0.00022478,2]
[312894966,1706431840106,-18074.88,0.00022478,2]
[312894967,1706431840116,-904.35,0.00022478,2]
[312894968,1706431840126,-39167.92,0.00022478,2]
[312894969,1706431840137,-500.0,0.00022479,2]
[312894970,1706431840146,-500.0,0.00022479,2]
[312894971,1706431840157,-500.0,0.00022479,2]
[312894972,1706431840167,-500.0,0.00022479,2]
[312894973,1706431840176,-500.0,0.00022479,2]
[312894974,1706431840186,-500.0,0.00022479,2]
[312894975,1706431840196,-386.2927909,0.00022479,2]
[312894976,1706431840205,-500.0,0.00022479,2]
[312894977,1706431840214,-500.0,0.00022479,2]
[312894978,1706431840224,-500.0,0.00022479,2]
[312894979,1706431840233,-500.0,0.00022479,2]
[312894980,1706431840245,-500.0,0.00022479,2]
[312894981,1706431840254,-724.92,0.00022479,2]
[312894982,1706431840263,-500.0,0.00022479,2]
[312894983,1706431840272,-500.0,0.00022546,2]
[312894984,1706431840282,-915.71,0.00022546,2]
[312894985,1706431840292,-500.0,0.00022546,2]
[312894986,1706431840302,-500.0,0.00022546,2]
[312894987,1706431840313,-498.94641593,0.00022546,2]
[312894988,1706431840322,-500.0,0.00022546,2]
[312894989,1706431840331,-507.68,0.00022546,2]
[312894990,1706431840343,-319.81136122,0.00022546,2]
[312894991,1706431840353,-500.0,0.00022546,2]
[312894992,1706431840363,-500.0,0.00022546,2]
[312894994,1706431840373,-853.73,0.00022546,2]
[312894996,1706431840382,-500.0,0.00022546,2]
[312894998,1706431840391,-500.0,0.00022546,2]
[312894999,1706431840400,-500.0,0.00022546,2]
[312895000,1706431840409,-514.20095115,0.00022546,2]
[312895001,1706431840418,-500.0,0.00022546,2]
[312895002,1706431840427,-500.0,0.00022546,2]
[312895003,1706431840436,-500.0,0.00022546,2]
[312895004,1706431840445,-508.16618512,0.00022546,2]
[312895005,1706431840453,-356.68907681,0.00022546,2]
[312895006,1706431840463,-500.0,0.00022546,2]
[312895007,1706431840472,-500.0,0.00022546,2]
[312895009,1706431840481,-500.0,0.00022546,2]
[312895010,1706431840491,-2074.42,0.00022546,2]
[312895011,1706431840500,-367.80667092,0.00022546,2]
[312895012,1706431840509,-500.0,0.00022546,2]
[312895013,1706431840518,-500.0,0.00022546,2]
[312895014,1706431840528,-500.0,0.00022546,2]
[312895016,1706431840537,-500.0,0.00022546,2]
[312895017,1706431840546,-500.0,0.00022547,2]
[312895018,1706431840555,-308.40983295,0.00022547,2]
[312895019,1706431840566,-500.0,0.00022547,2]
[312895020,1706431840575,-500.0,0.00022547,2]
[312895021,1706431840584,-500.0,0.00022547,2]
[312895022,1706431840593,-500.0,0.00022547,2]
[312895023,1706431840603,-500.0,0.00022547,2]
[312895024,1706431840613,-500.0,0.00022547,2]
[312895025,1706431840702,-501.09,0.00022547,2]
[312895026,1706431840712,-500.0,0.00022547,2]
[312895027,1706431840722,-701.524239,0.00022547,2]
[312895028,1706431840732,-701.524239,0.00022547,2]
[312895029,1706431840741,-167.31888484,0.00022606,2]
[312895030,1706431840750,-28389.56,0.00022752,2]
[312895031,1706431840759,-500.0,0.00022752,2]
[312895032,1706431840769,-10000.0,0.00022752,2]
[312895033,1706431840777,-10000.0,0.00022752,2]
[312895034,1706431840787,-10000.0,0.00022752,2]
[312895035,1706431840796,-2385.83,0.00022752,2]
[312895036,1706431840805,-237.80135439,0.00022752,2]
[312895037,1706431840815,-18074.88,0.00022752,2]
[312895038,1706431840824,-904.35,0.00022752,2]
[312895039,1706431840833,-701.524239,0.00022752,2]
[312895040,1706431840842,-39167.92,0.00022752,2]
[312895041,1706431840851,-701.524239,0.00022752,2]
[312895042,1706431840861,-701.524239,0.00022752,2]
[312895043,1706431840870,-701.524239,0.00022752,2]
[312895044,1706431840878,-614.33097546,0.00022753,2]
[312895045,1706431840887,-500.0,0.00022753,2]
[312895046,1706431840896,-500.0,0.00022753,2]
[312895047,1706431840905,-500.0,0.00022753,2]
[312895048,1706431840914,-500.0,0.00022753,2]
[312895049,1706431840924,-500.0,0.00022753,2]
[312895050,1706431840933,-500.0,0.00022753,2]
[312895051,1706431840943,-500.0,0.00022753,2]
[312895052,1706431840953,-500.0,0.00022753,2]
[312895053,1706431840963,-500.0,0.00022753,2]
[312895054,1706431840972,-500.0,0.00022753,2]
[312895055,1706431840979,-724.92,0.00022753,2]
[312895056,1706431840988,-500.0,0.00022753,2]
[312895057,1706431840998,-500.0,0.0002282,2]
[312895058,1706431841007,-915.71,0.0002282,2]
[312895059,1706431841016,-506.78246535,0.0002282,2]
[312895060,1706431841025,-513.19830853,0.0002282,2]
[312895061,1706431841035,-500.0,0.0002282,2]
[312895062,1706431841044,-507.68,0.0002282,2]
[312895063,1706431841053,-500.0,0.0002282,2]
[312895064,1706431841062,-500.0,0.0002282,2]
[312895065,1706431841071,-853.73,0.0002282,2]
[312895066,1706431841080,-500.0,0.0002282,2]
[312895067,1706431841090,-500.0,0.0002282,2]
[312895068,1706431841099,-500.0,0.0002282,2]
[312895069,1706431841108,-500.0,0.0002282,2]
[312895070,1706431841117,-500.0,0.0002282,2]
[312895071,1706431841127,-500.0,0.0002282,2]
[312895072,1706431841136,-500.0,0.0002282,2]
[312895073,1706431841145,-249.01428502,0.0002282,2]
[312895074,1706431841154,-500.0,0.0002282,2]
[312895075,1706431841163,-2074.42,0.0002282,2]
[312895076,1706431841172,-500.0,0.0002282,2]
[312895077,1706431841181,-500.0,0.0002282,2]
[312895078,1706431841191,-399.27992527,0.0002282,2]
[312895079,1706431841201,-500.0,0.0002282,2]
[312895080,1706431841210,-500.0,0.00022821,2]
[312895081,1706431841219,-500.0,0.00022821,2]
[312895082,1706431841228,-500.0,0.00022821,2]
[312895083,1706431841238,-284.37017869,0.00022821,2]
[312895085,1706431841247,-500.0,0.00022821,2]
[312895086,1706431841255,-500.0,0.00022821,2]
[312895087,1706431841264,-500.0,0.00022821,2]
[312895088,1706431841273,-501.09,0.00022821,2]
[312895089,1706431841282,-500.0,0.00022821,2]
[312895090,1706431841291,-500.0,0.00022943,2]
[312895091,1706431841300,-1828.36,0.00022943,2]
[312895092,1706431841309,-819.23,0.00022943,2]
[312895093,1706431841319,-500.0,0.00022943,2]
[312895094,1706431841328,-500.0,0.00022943,2]
[312895095,1706431841337,-500.0,0.00022943,2]
[312895096,1706431841346,-500.0,0.00022943,2]
[312895097,1706431841355,-500.0,0.00022943,2]
[312895098,1706431841364,-981.65,0.00022943,2]
[312895099,1706431841373,-500.0,0.00022943,2]
[312895100,1706431841382,-1000.0,0.00022943,2]
[312895101,1706431841391,-753.94,0.00022943,2]
[312895102,1706431841400,-500.0,0.00022943,2]
[312895103,1706431841410,-500.0,0.00022943,2]
[312895104,1706431841419,-535.34315171,0.00022943,2]
[312895105,1706431841428,-701.524239,0.00022943,2]
[312895106,1706431841437,-701.524239,0.00022943,2]
[312895107,1706431841446,-500.0,0.00022943,2]
[312895108,1706431841455,-166.666666,0.00022944,2]
[312895109,1706431841464,-12657.0085563,0.00023026,2]
[312895114,1706431843220,-396.85223137,0.00023026,2]
[312895121,1706431846218,-500.0,0.00022272,2]
[312895122,1706431846228,-1856.25502519,0.00022545,2]
[312895124,1706431846237,-500.0,0.00022546,2]
[312895125,1706431846247,-500.0,0.0002282,2]
[312895126,1706431846256,-155.02170304,0.00023025,4]
[312895127,1706431846265,-15335.69921233,0.00023026,2]
[312895128,1706431846274,-500.0,0.00023026,2]
[312895129,1706431846284,-900.51639133,0.00023026,2]
[312895130,1706431846295,-1206.66251863,0.00023026,2]
[312895169,1706432898272,21627.5721347,0.00019761,2]
[312895192,1706433032281,-155.02325349,0.00020602,2]
[312895193,1706433032291,-243.38918816,0.00020603,2]
[312895194,1706433032301,-1774.09643899,0.00020603,2]
[312895195,1706433032310,-1853.78021493,0.00020603,2]
[312895221,1706433038352,-2.47481026,0.00020603,2]
[312895223,1706433038362,-15634.47127894,0.00020603,2]
[312895225,1706433038372,-1268.12169078,0.00020604,2]
[312895227,1706433038381,-181.15956934,0.00020604,2]
[312895229,1706433038391,-155.02325349,0.00020605,4]
[312895231,1706433038400,-155.02325349,0.00020605,2]
[312895233,1706433038410,-1485.48078161,0.00020605,2]
[312895235,1706433038419,-1580.96149177,0.00020605,2]
[312895236,1706433038428,-5214.02314025,0.00020606,2]
[312895239,1706433038438,-167.17885377,0.00020606,2]
[312895240,1706433038447,-159.47121566,0.0002061,2]
[312895242,1706433038456,-11972.55609398,0.00020709,2]
[312895245,1706433038465,-2235.08098812,0.00020718,2]
[312895246,1706433038475,-572.10326965,0.0002072,2]